fUSD/lending_fUSD_20240301
["ID","MTS","AMOUNT","RATE_DAILY","PERIOD"]
[316017967,1709326268976,-622.52,0.00022246,2]
[316017968,1709326268987,-942.75,0.00022246,2]
[316017969,1709326269000,-500.0,0.00022246,2]
[316017970,1709326269014,-2306.71,0.00022246,2]
[316017971,1709326269035,-631.62,0.00022246,2]
[316017972,1709326269046,-500.0,0.00022246,2]
[316017973,1709326269057,-683.48,0.00022246,2]
[316017974,1709326269069,-500.0,0.00022246,2]
[316017975,1709326269081,-500.0,0.00022246,2]
[316017976,1709326269092,-600.62818948,0.00022246,2]
[316017977,1709326269104,-500.0,0.00022246,2]
[316017978,1709326269115,-851.74,0.00022246,2]
[316017979,1709326269126,-4012.18,0.00022246,2]
[316017980,1709326269137,-974.43,0.00022246,2]
[316017981,1709326269147,-500.0,0.00022246,2]
[316017982,1709326269158,-16838.98,0.00022246,2]
[316017983,1709326269177,-720.14,0.00022246,2]
[316017984,1709326269189,-550.82,0.00022246,2]
[316017985,1709326269200,-500.0,0.00022246,2]
[316017986,1709326269211,-414.96489523,0.00022246,2]
[316017987,1709326269223,-500.0,0.00022246,2]
[316017988,1709326269237,-500.0,0.00022246,2]
[316017989,1709326269248,-500.0,0.00022246,2]
[316017990,1709326269262,-500.0,0.00022246,2]
[316017991,1709326269273,-465.74836122,0.00022246,2]
[316017992,1709326269284,-1233.77,0.00022246,2]
[316017993,1709326269294,-500.0,0.00022246,2]
[316017994,1709326269313,-5627.93,0.00022246,2]
[316017995,1709326269326,-500.0,0.00022246,2]
[316017996,1709326269346,-979.73,0.00022246,2]
[316017997,1709326269364,-1305.9,0.00022246,2]
[316017998,1709326269386,-2474.48,0.00022246,2]
[316017999,1709326269402,-500.0,0.00022246,2]
[316018000,1709326269418,-1551.86,0.00022246,2]
[316018001,1709326269431,-1349.67,0.00022246,2]
[316018002,1709326269442,-500.0,0.00022246,2]
[316018003,1709326269453,-21665.72,0.00022246,2]
[316018004,1709326269467,-500.0,0.00022246,2]
[316018005,1709326269488,-792.03,0.00022246,2]
[316018006,1709326269499,-1290.32,0.00022246,2]
[316018007,1709326269512,-2195.04,0.00022246,2]
[316018008,1709326269523,-3470.74,0.00022246,2]
[316018009,1709326269534,-868.43,0.00022246,2]
[316018010,1709326269544,-500.0,0.00022246,2]
[316018011,1709326269555,-1764.98,0.00022246,2]
[316018012,1709326269566,-2473.65,0.00022246,2]
[316018013,1709326269575,-500.0,0.00022246,2]
[316018014,1709326269586,-500.0,0.00022246,2]
[316018015,1709326269611,-500.0,0.00022246,2]
[316018016,1709326269622,-500.0,0.00022246,2]
[316018017,1709326269632,-1501.39,0.00022246,2]
[316018018,1709326269642,-548.97,0.00022246,2]
[316018019,1709326269653,-500.0,0.00022246,2]
[316018020,1709326269663,-500.0,0.00022246,2]
[316018021,1709326269674,-500.0,0.00022246,2]
[316018022,1709326269684,-1900.25,0.00022246,2]
[316018023,1709326269695,-666.05,0.00022246,2]
[316018024,1709326269705,-10426.32,0.00022246,2]
[316018025,1709326269716,-1014.03,0.00022246,2]
[316018026,1709326269726,-546.97068399,0.00022246,2]
[316018027,1709326269737,-500.0,0.00022246,2]
[316018028,1709326269747,-653.86,0.00022246,2]
[316018029,1709326269759,-863.78,0.00022246,2]
[316018030,1709326269770,-530.99,0.00022246,2]
[316018031,1709326269780,-1227.72,0.00022246,2]
[316018032,1709326269791,-500.0,0.00022246,2]
[316018033,1709326270046,-500.0,0.00022246,2]
[316018034,1709326270058,-17865.16,0.00022246,2]
[316018035,1709326270069,-631.8,0.00022246,2]
[316018036,1709326270079,-500.0,0.00022246,2]
[316018037,1709326270089,-500.0,0.00022246,2]
[316018038,1709326270100,-1711.85,0.00022246,2]
[316018039,1709326270110,-500.0,0.00022246,2]
[316018040,1709326270120,-1119.33,0.00022246,2]
[316018041,1709326270131,-1825.66,0.00022246,2]
[316018042,1709326270141,-1082.83,0.00022246,2]
[316018043,1709326270151,-500.0,0.00022246,2]
[316018044,1709326270161,-735.02,0.00022246,2]
[316018045,1709326270172,-545.79,0.00022246,2]
[316018046,1709326270183,-500.0,0.00022246,2]
[316018047,1709326270194,-552.52,0.00022246,2]
[316018048,1709326270203,-1669.68,0.00022246,2]
[316018049,1709326270214,-709.91,0.00022246,2]
[316018050,1709326270224,-1283.48,0.00022246,2]
[316018051,1709326270234,-782.39,0.00022246,2]
[316018052,1709326270244,-1490.04,0.00022246,2]
[316018053,1709326270255,-500.0,0.00022246,2]
[316018054,1709326270265,-500.0,0.00022246,2]
[316018055,1709326270275,-500.0,0.00022246,2]
[316018056,1709326270285,-500.0,0.00022246,2]
[316018057,1709326270295,-500.0,0.00022246,2]
[316018058,1709326270305,-500.0,0.00022246,2]
[316018059,1709326270316,-500.0,0.00022246,2]
[316018060,1709326270326,-500.0,0.00022246,2]
[316018061,1709326270336,-502.99,0.00022246,2]
[316018062,1709326270347,-513.43,0.00022246,2]
[316018063,1709326270361,-500.0,0.00022246,2]
[316018064,1709326270371,-523.5,0.00022246,2]
[316018065,1709326270382,-1029.49,0.00022246,2]
[316018066,1709326270393,-2748.63,0.00022246,2]
[316018067,1709326270404,-550.36,0.00022246,2]
[316018068,1709326270414,-500.0,0.00022246,2]
[316018069,1709326270424,-1335.02,0.00022246,2]
[316018070,1709326270434,-500.0,0.00022246,2]
[316018071,1709326270446,-500.0,0.00022246,2]
[316018072,1709326270456,-651.38,0.00022246,2]
[316018073,1709326270467,-500.0,0.00022246,2]
[316018074,1709326270478,-1253.85,0.00022246,2]
[316018075,1709326270489,-500.0,0.00022246,2]
[316018076,1709326270499,-500.0,0.00022246,2]
[316018077,1709326270511,-500.0,0.00022246,2]
[316018078,1709326270522,-1447.41,0.00022246,2]
[316018079,1709326270532,-500.0,0.00022246,2]
[316018080,1709326270542,-1115.76,0.00022246,2]
[316018081,1709326270552,-1052.26,0.00022246,2]
[316018082,1709326270562,-500.0,0.00022246,2]
[316018083,1709326270572,-500.0,0.00022246,2]
[316018084,1709326270583,-1958.2,0.00022246,2]
[316018085,1709326270593,-515.73367996,0.00022246,2]
[316018086,1709326270602,-500.0,0.00022246,2]
[316018087,1709326270613,-2133.89,0.00022246,2]
[316018088,1709326270622,-870.33,0.00022246,2]
[316018089,1709326270632,-500.0,0.00022246,2]
[316018090,1709326270642,-500.0,0.00022246,2]
[316018091,1709326270651,-500.0,0.00022246,2]
[316018092,1709326270661,-646.06,0.00022246,2]
[316018093,1709326270671,-630.89,0.00022246,2]
[316018094,1709326270681,-500.0,0.00022246,2]
[316018095,1709326270691,-634.99,0.00022246,2]
[316018096,1709326270701,-500.0,0.00022246,2]
[316018097,1709326270711,-500.0,0.00022246,2]
[316018098,1709326270721,-2872.44,0.00022246,2]
[316018099,1709326270731,-558.26,0.00022246,2]
[316018100,1709326270741,-894.88,0.00022246,2]
[316018101,1709326270751,-586.38,0.00022246,2]
[316018102,1709326270762,-845.35,0.00022246,2]
[316018103,1709326270772,-500.0,0.00022246,2]
[316018104,1709326270782,-906.53,0.00022246,2]
[316018105,1709326270792,-879.47,0.00022246,2]
[316018106,1709326270802,-500.0,0.00022246,2]
[316018107,1709326270811,-724.83,0.00022246,2]
[316018108,1709326270821,-692.96,0.00022246,2]
[316018109,1709326270831,-500.0,0.00022246,2]
[316018110,1709326270841,-986.41,0.00022246,2]
[316018111,1709326270851,-500.0,0.00022246,2]
[316018112,1709326270861,-500.0,0.00022246,2]
[316018113,1709326270870,-1964.17,0.00022246,2]
[316018114,1709326270880,-500.0,0.00022246,2]
[316018115,1709326270889,-500.0,0.00022246,2]
[316018116,1709326270899,-500.0,0.00022246,2]
[316018117,1709326270908,-500.0,0.00022246,2]
[316018118,1709326270917,-500.0,0.00022246,2]
[316018119,1709326270927,-500.0,0.00022246,2]
[316018120,1709326270936,-500.0,0.00022246,2]
[316018121,1709326270946,-3117.18,0.00022246,2]
[316018122,1709326270956,-500.0,0.00022246,2]
[316018123,1709326270966,-680.36,0.00022246,2]
[316018124,1709326270976,-826.94,0.00022246,2]
[316018125,1709326270986,-500.0,0.00022246,2]
[316018126,1709326270996,-500.0,0.00022246,2]
[316018127,1709326271006,-901.59,0.00022246,2]
[316018128,1709326271015,-14402.31,0.00022246,2]
[316018129,1709326271025,-500.0,0.00022246,2]
[316018130,1709326271034,-797.02,0.00022246,2]
[316018131,1709326271044,-500.0,0.00022246,2]
[316018132,1709326271054,-1399.82,0.00022246,2]
[316018133,1709326271064,-1737.31,0.00022246,2]
[316018134,1709326271074,-596.01,0.00022246,2]
[316018135,1709326271084,-1014.67,0.00022246,2]
[316018136,1709326271094,-500.0,0.00022246,2]
[316018137,1709326271104,-2736.06,0.00022246,2]
[316018138,1709326271114,-1251.49,0.00022246,2]
[316018139,1709326271123,-2070.69,0.00022246,2]
[316018140,1709326271133,-976.83,0.00022246,2]
[316018141,1709326271142,-585.26,0.00022246,2]
[316018142,1709326271152,-687.56,0.00022246,2]
[316018143,1709326271163,-500.0,0.00022246,2]
[316018144,1709326271172,-1382.52,0.00022246,2]
[316018145,1709326271182,-210.7892824,0.00022246,2]
[316018146,1709326271192,-1480.18,0.00022246,2]
[316018147,1709326271202,-165.88,0.00022246,2]
[316018148,1709326271212,-889.93,0.00022246,2]
[316018149,1709326271221,-500.0,0.00022246,2]
[316018150,1709326271231,-500.0,0.00022246,2]
[316018151,1709326271241,-905.87,0.00022246,2]
[316018152,1709326271251,-500.0,0.00022246,2]
[316018153,1709326271261,-550.85,0.00022246,2]
[316018154,1709326271272,-1370.51,0.00022246,2]
[316018155,1709326271281,-500.0,0.00022246,2]
[316018156,1709326271291,-500.0,0.00022246,2]
[316018157,1709326271300,-867.77,0.00022246,2]
[316018158,1709326271311,-653.52,0.00022246,2]
[316018159,1709326271322,-500.0,0.00022246,2]
[316018160,1709326271331,-2028.88,0.00022246,2]
[316018161,1709326271341,-500.0,0.00022246,2]
[316018162,1709326271354,-1360.96,0.00022246,2]
[316018163,1709326271364,-505.21,0.00022246,2]
[316018164,1709326271374,-500.0,0.00022246,2]
[316018165,1709326271384,-2542.85,0.00022246,2]
[316018166,1709326271396,-1865.45,0.00022246,2]
[316018167,1709326271406,-1464.06,0.00022246,2]
[316018168,1709326271416,-1121.43,0.00022246,2]
[316018169,1709326271427,-500.0,0.00022246,2]
[316018170,1709326271436,-858.99,0.00022246,2]
[316018171,1709326271446,-500.0,0.00022246,2]
[316018172,1709326271456,-500.0,0.00022246,2]
[316018173,1709326271468,-724.31,0.00022246,2]
[316018174,1709326271478,-1009.65,0.00022246,2]
[316018175,1709326271489,-500.0,0.00022246,2]
[316018176,1709326271499,-500.0,0.00022246,2]
[316018177,1709326271510,-507.03,0.00022246,2]
[316018178,1709326271520,-500.0,0.00022246,2]
[316018179,1709326271530,-2048.99,0.00022246,2]
[316018180,1709326271540,-1664.19,0.00022246,2]
[316018181,1709326271550,-3957.07,0.00022246,2]
[316018182,1709326271560,-802.08,0.00022246,2]
[316018183,1709326271571,-500.0,0.00022246,2]
[316018184,1709326271581,-500.0,0.00022246,2]
[316018185,1709326271591,-646.49,0.00022246,2]
[316018186,1709326271602,-645.24,0.00022246,2]
[316018187,1709326271612,-500.0,0.00022246,2]
[316018188,1709326271622,-500.0,0.00022246,2]
[316018189,1709326271632,-500.0,0.00022246,2]
[316018190,1709326271642,-500.0,0.00022246,2]
[316018191,1709326271652,-7876.48,0.00022246,2]
[316018192,1709326271662,-599.98,0.00022246,2]
[316018193,1709326271672,-500.0,0.00022246,2]
[316018194,1709326271682,-599.65,0.00022246,2]
[316018195,1709326271693,-1932.99,0.00022246,2]
[316018196,1709326271703,-1034.74,0.00022246,2]
[316018197,1709326271713,-1393.02,0.00022246,2]
[316018198,1709326271723,-1669.12,0.00022246,2]
[316018199,1709326271733,-647.18,0.00022246,2]
[316018200,1709326271743,-500.0,0.00022246,2]
[316018201,1709326271753,-500.0,0.00022246,2]
[316018202,1709326271763,-500.0,0.00022246,2]
[316018203,1709326271773,-4510.65,0.00022246,2]
[316018204,1709326271782,-500.0,0.00022246,2]
[316018205,1709326271792,-500.0,0.00022246,2]
[316018206,1709326271801,-500.0,0.00022246,2]
[316018207,1709326271811,-5659.52,0.00022246,2]
[316018208,1709326271821,-692.99,0.00022246,2]
[316018209,1709326271830,-570.89,0.00022246,2]
[316018210,1709326271840,-799.41,0.00022246,2]
[316018211,1709326271850,-7796.29,0.00022246,2]
[316018212,1709326271860,-500.0,0.00022246,2]
[316018213,1709326271870,-500.0,0.00022246,2]
[316018214,1709326271880,-500.0,0.00022246,2]
[316018215,1709326271892,-6476.17,0.00022246,2]
[316018216,1709326271929,-523.02,0.00022246,2]
[316018217,1709326271939,-500.0,0.00022246,2]
[316018218,1709326271949,-3013.84,0.00022246,2]
[316018219,1709326271958,-1321.12,0.00022246,2]
[316018220,1709326271969,-1065.7,0.00022246,2]
[316018221,1709326271979,-1380.97,0.00022246,2]
[316018222,1709326271989,-731.52,0.00022246,2]
[316018223,1709326271999,-637.88,0.00022246,2]
[316018224,1709326272012,-599.33,0.00022246,2]
[316018225,1709326272022,-2089.41,0.00022246,2]
[316018226,1709326272032,-9598.11,0.00022246,2]
[316018227,1709326272043,-2359.76,0.00022246,2]
[316018228,1709326272053,-6057.78,0.00022246,2]
[316018229,1709326272063,-500.0,0.00022246,2]
[316018230,1709326272073,-6067.78,0.00022246,2]
[316018231,1709326272083,-1158.19,0.00022246,2]
[316018232,1709326272094,-995.46,0.00022246,2]
[316018233,1709326272103,-500.0,0.00022246,2]
[316018234,1709326272113,-500.0,0.00022246,2]
[316018235,1709326272123,-4691.09,0.00022246,2]
[316018236,1709326272132,-4814.67,0.00022246,2]
[316018237,1709326272142,-800.0,0.00022255,2]
[316018238,1709326272151,-496.0,0.0002227,2]
[316018239,1709326272161,-8282.47989128,0.00022277,2]
[316018240,1709326272171,-1380.68113235,0.00022295,2]
[316018241,1709326272181,-200.0,0.000223,2]
[316018242,1709326272191,-150.0,0.00022331,2]
[316018243,1709326272201,-500.0,0.00022356,2]
[316018244,1709326272211,-500.0,0.00022356,2]
[316018245,1709326272220,-591.19513211,0.00022356,2]
[316018246,1709326272230,-500.0,0.00022356,2]
[316018247,1709326272240,-518.61046732,0.00022356,2]
[316018248,1709326272251,-500.0,0.00022356,2]
[316018249,1709326272263,-500.0,0.00022356,2]
[316018250,1709326272274,-500.0,0.00022356,2]
[316018251,1709326272284,-428.34609519,0.00022356,2]
[316018252,1709326272294,-500.0,0.00022356,2]
[316018253,1709326272303,-500.0,0.00022356,2]
[316018254,1709326272313,-500.0,0.00022356,2]
[316018255,1709326272324,-500.0,0.00022356,2]
[316018256,1709326272334,-500.0,0.00022356,2]
[316018257,1709326272344,-500.0,0.00022356,2]
[316018258,1709326272354,-500.0,0.00022356,2]
[316018259,1709326272363,-500.0,0.00022356,2]
[316018260,1709326272373,-500.0,0.00022356,2]
[316018261,1709326272384,-500.0,0.00022356,2]
[316018262,1709326272396,-500.0,0.00022356,2]
[316018263,1709326272406,-500.0,0.00022356,2]
[316018264,1709326272416,-500.0,0.00022356,2]
[316018265,1709326272426,-500.0,0.00022356,2]
[316018266,1709326272436,-500.0,0.00022356,2]
[316018267,1709326272446,-500.0,0.00022356,2]
[316018268,1709326272457,-500.0,0.00022356,2]
[316018269,1709326272537,-500.0,0.00022356,2]
[316018270,1709326272547,-500.0,0.00022356,2]
[316018271,1709326272556,-500.0,0.00022356,2]
[316018272,1709326272565,-500.0,0.00022356,2]
[316018273,1709326272574,-500.0,0.00022356,2]
[316018274,1709326272584,-500.0,0.00022356,2]
[316018275,1709326272593,-500.0,0.00022356,2]
[316018276,1709326272603,-500.0,0.00022356,2]
[316018277,1709326272612,-500.0,0.00022356,2]
[316018278,1709326272621,-500.0,0.00022356,2]
[316018279,1709326272630,-500.0,0.00022356,2]
[316018280,1709326272640,-500.0,0.00022356,2]
[316018281,1709326272649,-500.0,0.00022356,2]
[316018282,1709326272658,-500.0,0.00022356,2]
[316018283,1709326272667,-500.0,0.00022356,2]
[316018284,1709326272676,-500.0,0.00022356,2]
[316018285,1709326272685,-500.0,0.00022356,2]
[316018286,1709326272695,-500.0,0.00022356,2]
[316018287,1709326272704,-500.0,0.00022356,2]
[316018288,1709326272713,-500.0,0.00022356,2]
[316018289,1709326272722,-500.0,0.00022356,2]
[316018290,1709326272731,-500.0,0.00022356,2]
[316018291,1709326272740,-500.0,0.00022356,2]
[316018292,1709326272749,-500.0,0.00022356,2]
[316018293,1709326272759,-500.0,0.00022356,2]
[316018294,1709326272768,-649.06,0.00022356,2]
[316018295,1709326272777,-500.0,0.00022356,2]
[316018296,1709326272787,-500.0,0.00022356,2]
[316018297,1709326272796,-363.71330657,0.00022356,2]
[316018298,1709326272805,-500.0,0.00022356,2]
[316018299,1709326272815,-500.0,0.00022356,2]
[316018300,1709326272824,-582.72,0.00022356,2]
[316018301,1709326272834,-500.0,0.00022356,2]
[316018302,1709326272843,-500.0,0.00022356,2]
[316018303,1709326272853,-648.67,0.00022356,2]
[316018304,1709326272862,-500.0,0.00022356,2]
[316018305,1709326272872,-219.27732547,0.00022356,2]
[316018306,1709326272881,-350.67744545,0.00022356,2]
[316018307,1709326272891,-500.0,0.00022356,2]
[316018308,1709326272901,-706.84,0.00022356,2]
[316018309,1709326272911,-347.53411968,0.00022356,2]
[316018310,1709326272920,-466.63044034,0.00022356,2]
[316018311,1709326272930,-500.0,0.00022356,2]
[316018312,1709326272940,-359.86,0.00022356,2]
[316018313,1709326272949,-548.65,0.00022356,2]
[316018314,1709326272959,-500.0,0.00022356,2]
[316018315,1709326272968,-500.0,0.00022356,2]
[316018316,1709326272978,-500.0,0.00022356,2]
[316018317,1709326272987,-500.0,0.00022356,2]
[316018318,1709326272997,-500.0,0.00022356,2]
[316018319,1709326273006,-500.0,0.00022356,2]
[316018320,1709326273017,-232.83359707,0.00022356,2]
[316018321,1709326273027,-500.0,0.00022356,2]
[316018322,1709326273037,-500.0,0.00022356,2]
[316018323,1709326273047,-500.0,0.00022356,2]
[316018324,1709326273056,-947.83,0.00022356,2]
[316018325,1709326273065,-205.94429966,0.00022356,2]
[316018326,1709326273075,-500.0,0.00022356,2]
[316018327,1709326273084,-500.0,0.00022356,2]
[316018328,1709326273094,-500.0,0.00022356,2]
[316018329,1709326273103,-583.6586456,0.00022356,2]
[316018330,1709326273114,-858.32,0.00022356,2]
[316018331,1709326273123,-257.76472445,0.00022356,2]
[316018332,1709326273133,-500.0,0.00022356,2]
[316018333,1709326273143,-500.0,0.00022356,2]
[316018334,1709326273153,-579.45,0.00022356,2]
[316018335,1709326273163,-500.0,0.00022356,2]
[316018336,1709326273172,-500.0,0.00022356,2]
[316018337,1709326273182,-500.0,0.00022356,2]
[316018338,1709326273192,-500.0,0.00022356,2]
[316018339,1709326273202,-815.58,0.00022356,2]
[316018340,1709326273212,-500.0,0.00022356,2]
[316018341,1709326273221,-500.0,0.00022356,2]
[316018342,1709326273231,-500.0,0.00022356,2]
[316018343,1709326273240,-500.0,0.00022356,2]
[316018344,1709326273250,-500.0,0.00022356,2]
[316018345,1709326273262,-659.97,0.00022356,2]
[316018346,1709326273271,-500.0,0.00022356,2]
[316018347,1709326273281,-500.0,0.00022356,2]
[316018348,1709326273291,-571.62,0.00022356,2]
[316018349,1709326273302,-786.82,0.00022356,2]
[316018350,1709326273312,-500.0,0.00022356,2]
[316018351,1709326273323,-500.0,0.00022356,2]
[316018352,1709326273333,-500.0,0.00022356,2]
[316018353,1709326273343,-229.09609929,0.00022356,2]
[316018354,1709326273359,-500.0,0.00022356,2]
[316018355,1709326273369,-500.0,0.00022356,2]
[316018356,1709326273379,-568.81,0.00022356,2]
[316018357,1709326273390,-500.0,0.00022356,2]
[316018358,1709326273405,-626.66,0.00022356,2]
[316018359,1709326273415,-840.97,0.00022356,2]
[316018360,1709326273428,-566.2,0.00022356,2]
[316018361,1709326273439,-500.0,0.00022356,2]
[316018362,1709326273451,-500.0,0.00022356,2]
[316018363,1709326273464,-500.0,0.00022356,2]
[316018364,1709326273476,-500.0,0.00022356,2]
[316018365,1709326273488,-896.77,0.00022356,2]
[316018366,1709326273498,-610.84,0.00022356,2]
[316018367,1709326273509,-500.0,0.00022356,2]
[316018368,1709326273519,-715.55,0.00022356,2]
[316018369,1709326273536,-500.0,0.00022356,2]
[316018370,1709326273549,-500.0,0.00022356,2]
[316018371,1709326273558,-1311.49,0.00022356,2]
[316018372,1709326273569,-607.55,0.00022356,2]
[316018373,1709326273580,-500.0,0.00022356,2]
[316018374,1709326273589,-500.0,0.00022356,2]
[316018375,1709326273599,-500.0,0.00022356,2]
[316018376,1709326273609,-500.0,0.00022356,2]
[316018377,1709326273618,-202.15288254,0.00022356,2]
[316018378,1709326273628,-500.0,0.00022356,2]
[316018379,1709326273646,-502.38,0.00022356,2]
[316018380,1709326273655,-500.0,0.00022356,2]
[316018381,1709326273665,-500.0,0.00022356,2]
[316018382,1709326273675,-550.28,0.00022356,2]
[316018383,1709326273685,-500.0,0.00022356,2]
[316018384,1709326273694,-500.0,0.00022356,2]
[316018385,1709326273703,-500.0,0.00022356,2]
[316018386,1709326273732,-500.0,0.00022356,2]
[316018387,1709326273744,-500.0,0.00022356,2]
[316018388,1709326273755,-500.0,0.00022356,2]
[316018389,1709326273766,-500.0,0.00022356,2]
[316018390,1709326273775,-500.0,0.00022356,2]
[316018391,1709326273784,-500.0,0.00022356,2]
[316018392,1709326273793,-500.0,0.00022356,2]
[316018393,1709326273803,-500.0,0.00022356,2]
[316018394,1709326273813,-939.4,0.00022356,2]
[316018395,1709326273822,-202.75,0.00022356,2]
[316018396,1709326273831,-500.0,0.00022356,2]
[316018397,1709326273840,-500.0,0.00022356,2]
[316018398,1709326273849,-500.0,0.00022356,2]
[316018399,1709326273858,-500.0,0.00022356,2]
[316018400,1709326273867,-500.0,0.00022356,2]
[316018401,1709326273877,-500.0,0.00022356,2]
[316018402,1709326273887,-500.0,0.00022356,2]
[316018403,1709326273896,-500.0,0.00022356,2]
[316018404,1709326273906,-500.0,0.00022356,2]
[316018405,1709326273915,-500.0,0.00022356,2]
[316018406,1709326273928,-500.0,0.00022356,2]
[316018407,1709326273937,-500.0,0.00022356,2]
[316018408,1709326273947,-461.38928587,0.00022356,2]
[316018409,1709326273957,-500.0,0.00022356,2]
[316018410,1709326273967,-500.0,0.00022356,2]
[316018411,1709326273976,-896.7,0.00022356,2]
[316018412,1709326273985,-500.0,0.00022356,2]
[316018413,1709326273995,-500.0,0.00022356,2]
[316018414,1709326274005,-693.65,0.00022356,2]
[316018415,1709326274016,-500.0,0.00022356,2]
[316018416,1709326274026,-500.0,0.00022356,2]
[316018417,1709326274035,-500.0,0.00022356,2]
[316018418,1709326274045,-500.0,0.00022356,2]
[316018419,1709326274055,-500.0,0.00022356,2]
[316018420,1709326274065,-629.71,0.00022356,2]
[316018421,1709326274075,-500.0,0.00022356,2]
[316018422,1709326274085,-181.26939889,0.00022356,2]
[316018423,1709326274095,-630.41,0.00022356,2]
[316018424,1709326274105,-584.54,0.00022356,2]
[316018425,1709326274115,-500.0,0.00022356,2]
[316018426,1709326274125,-500.0,0.00022356,2]
[316018427,1709326274135,-500.0,0.00022356,2]
[316018428,1709326274145,-500.0,0.00022356,2]
[316018429,1709326274155,-500.0,0.00022356,2]
[316018430,1709326274165,-500.0,0.00022356,2]
[316018431,1709326274175,-832.14,0.00022356,2]
[316018432,1709326274185,-536.62,0.00022356,2]
[316018433,1709326274195,-500.0,0.00022356,2]
[316018434,1709326274205,-500.0,0.00022356,2]
[316018435,1709326274215,-500.0,0.00022356,2]
[316018436,1709326274226,-572.8,0.00022356,2]
[316018437,1709326274235,-500.0,0.00022356,2]
[316018438,1709326274245,-500.0,0.00022356,2]
[316018439,1709326274254,-500.0,0.00022356,2]
[316018440,1709326274265,-500.0,0.00022356,2]
[316018441,1709326274275,-500.0,0.00022356,2]
[316018442,1709326274284,-500.0,0.00022356,2]
[316018443,1709326274294,-500.0,0.00022356,2]
[316018444,1709326274304,-500.0,0.00022356,2]
[316018445,1709326274313,-500.0,0.00022356,2]
[316018446,1709326274323,-500.0,0.00022356,2]
[316018447,1709326274332,-500.0,0.00022356,2]
[316018448,1709326274341,-500.0,0.00022356,2]
[316018449,1709326274352,-150.0,0.00022356,2]
[316018450,1709326274362,-500.0,0.00022356,2]
[316018451,1709326274372,-500.0,0.00022356,2]
[316018452,1709326274382,-1200.51,0.00022356,2]
[316018453,1709326274392,-500.0,0.00022356,2]
[316018454,1709326274402,-500.0,0.00022356,2]
[316018455,1709326274412,-500.0,0.00022356,2]
[316018456,1709326274422,-500.0,0.00022356,2]
[316018457,1709326274432,-635.32,0.00022356,2]
[316018458,1709326274443,-500.0,0.00022356,2]
[316018459,1709326274453,-500.0,0.00022356,2]
[316018460,1709326274463,-500.0,0.00022356,2]
[316018461,1709326274474,-642.83665783,0.00022356,2]
[316018462,1709326274484,-922.78,0.00022356,2]
[316018463,1709326274494,-500.0,0.00022356,2]
[316018464,1709326274505,-628.01,0.00022356,2]
[316018465,1709326274516,-866.97,0.00022356,2]
[316018466,1709326274526,-541.25,0.00022356,2]